bitfinex/quotes_ETHUSD_20250523
["timestamp","ask_amount","ask_price","bid_price","bid_amount"]
[1747990964114,0.09812454,2662.7,2662.3,40.348]
[1747990964614,0.09812454,2662.4,2662.3,40.35170624]
[1747990967489,0.09812454,2662.4,2662.3,40.348]
[1747990969137,0.09812454,2662.8,2662.3,40.77914108]
[1747990969485,0.09812454,2662.8,2662.3,40.348]
[1747990970991,0.09812454,2662.6,2662.3,40.348]
[1747990971184,0.09812454,2662.9,2662.3,40.348]
[1747990971384,0.09812454,2662.6,2662.3,40.348]
[1747990974299,0.09812454,2662.6,2662.4,16.197]
[1747990974937,0.09812454,2662.6,2662.5,14.5]
[1747990975436,1.62922454,2662.6,2662.5,40.344]
[1747990976138,1.62922454,2662.6,2662.5,14.596]
[1747990976325,7.05162795,2662.6,2662.5,25.844]
[1747990978125,7.05162795,2662.6,2662.5,14.596]
[1747990978335,0.09812454,2662.4,2661.9,0.375]
[1747990978537,0.09812454,2662.4,2662.0,26.219]
[1747990978906,0.09812454,2662.4,2662.1,11.248]
[1747990979308,0.09812454,2662.4,2662.2,25.748]
[1747990980324,0.09812454,2662.4,2662.2,14.5]
[1747990980550,0.09812454,2662.4,2662.3,11.248]
[1747990981113,0.09812454,2662.4,2662.2,14.5]
[1747990981445,0.09812454,2662.4,2662.3,11.248]
[1747990982112,5.52052795,2662.4,2662.3,11.248]
[1747990982518,2.1607,2662.3,2662.2,14.5]
[1747990982826,0.09812454,2662.0,2661.8,1.48784835]
[1747990983032,0.09812454,2662.0,2661.9,11.248]
[1747990983228,0.09812454,2662.0,2661.9,25.748]
[1747990985057,0.09812454,2662.2,2661.9,25.748]
[1747990985355,0.09812454,2662.3,2661.9,25.748]
[1747990986273,0.09812454,2662.3,2662.0,30.716]
[1747990987353,0.09812454,2662.3,2662.0,16.198]
[1747990987558,0.09812454,2662.3,2662.1,25.766]
[1747990987738,0.09812454,2662.3,2661.9,14.5]
[1747990987939,0.09812454,2662.3,2662.2,14.518]
[1747990988499,0.09812454,2662.5,2662.2,14.518]
[1747990988841,0.09812454,2662.5,2662.3,14.5]
[1747990989164,0.09812454,2662.5,2662.4,11.248]
[1747990989740,0.09812454,2662.5,2662.4,25.748]
[1747990990778,0.09812454,2662.5,2662.4,25.75376952]
[1747990991877,0.09812454,2662.5,2662.4,14.50576952]
[1747990992178,7.17862795,2662.5,2662.4,25.77176952]
[1747990992340,7.89649075,2662.5,2662.4,25.77176952]
[1747990993391,7.89649075,2662.5,2662.4,25.766]
[1747990993764,5.52052795,2662.5,2662.4,25.766]
[1747990996492,5.52052795,2662.5,2662.4,41.963]
[1747990996665,5.52052795,2662.5,2662.4,41.96876952]
[1747990996870,0.09812454,2662.5,2662.4,41.96876952]
[1747990997195,2.21332454,2662.5,2662.4,0.00576952]
[1747990997494,1.88465699,2662.5,2662.4,41.96776952]
[1747990999101,1.88465699,2662.5,2662.4,16.197]
[1747990999302,1.88465699,2662.5,2662.4,41.963]
[1747990999709,2.43465699,2662.5,2662.4,41.963]
[1747991001731,2.43465699,2662.5,2662.4,30.715]
[1747991001902,2.43465699,2662.5,2662.4,41.964]
[1747991002108,2.43465699,2662.5,2662.4,30.715]
[1747991002409,2.43465699,2662.5,2662.4,41.964]
[1747991002931,7.8570604,2662.5,2662.4,41.964]
[1747991006532,7.08572795,2662.5,2662.4,41.964]
[1747991006710,5.52052795,2662.5,2662.4,41.964]
[1747991007234,5.52052795,2662.5,2661.7,0.34283398]
[1747991007235,0.09812454,2662.1,2661.6,5.44615148]
[1747991007436,0.09812454,2662.3,2661.7,14.519]
[1747991007806,0.09812454,2662.3,2661.7,14.8583616]
[1747991008007,5.52052795,2662.5,2661.8,1.51591987]
[1747991008208,0.1,2662.4,2661.9,14.5]
[1747991008424,0.1,2662.4,2662.0,11.249]
[1747991008795,0.1,2662.4,2662.1,0.00577017]
[1747991009223,0.1,2662.4,2662.2,14.5]
[1747991009635,0.1,2662.6,2662.3,0.00576973]
[1747991011001,0.1,2662.6,2662.4,11.249]
[1747991011422,7.00160341,2662.5,2662.2,14.5]
[1747991011598,0.1,2662.0,2660.5,0.375]
[1747991011817,0.1,2661.8,2660.7,0.375]
[1747991012017,0.1,2661.8,2660.6,0.25159335]
[1747991012018,0.1,2661.8,2661.3,14.5]
[1747991013462,0.1,2661.4,2661.3,14.5]
[1747991013649,0.1,2661.4,2661.3,25.749]
[1747991014042,0.1,2661.6,2661.3,25.749]
[1747991014242,0.1,2661.4,2661.3,25.749]
[1747991014640,0.1,2661.6,2661.3,25.749]
[1747991016186,0.1,2661.8,2661.3,25.749]
[1747991016490,0.1,2661.6,2661.4,30.65977168]
[1747991016690,0.1,2661.8,2661.4,30.65977168]
[1747991016984,0.1,2661.8,2661.5,14.5]
[1747991017343,5.42240341,2661.9,2661.6,0.00577125]
[1747991017547,0.1,2662.0,2661.6,0.00577125]
[1747991018082,0.1,2662.0,2661.7,14.5]
[1747991018583,0.1,2661.8,2661.7,14.5]
[1747991020875,0.1,2661.8,2661.7,25.75]
[1747991022710,0.1,2661.8,2661.7,14.5]
[1747991023025,1.7574,2661.8,2661.7,28.955]
[1747991023482,1.7574,2661.8,2661.7,40.205]
[1747991023684,0.1,2661.8,2661.7,40.205]
[1747991030951,0.1,2661.8,2661.7,56.405]
[1747991038039,0.1,2661.8,2661.7,56.41077103]
[1747991040534,0.1,2661.8,2661.7,56.405]
[1747991041864,0.1,2662.0,2661.7,56.405]
[1747991043680,0.1,2662.0,2661.7,41.905]
[1747991047251,0.1,2662.0,2661.8,0.00434306]
[1747991047635,0.1,2662.0,2661.9,14.385]
[1747991047867,0.1,2662.0,2661.9,14.3893429]
[1747991048269,0.1,2662.0,2661.9,15.87818041]
[1747991048747,0.1,2662.0,2661.9,27.12818041]
[1747991049640,0.1,2662.2,2661.9,27.12818041]
[1747991049881,0.1,2662.2,2661.9,27.12383751]
[1747991055000,0.1,2662.2,2662.0,0.00382005]
[1747991056294,0.1,2662.2,2662.1,16.199]
[1747991056894,0.1,2662.2,2662.1,16.20281991]
[1747991057700,0.1,2662.2,2662.1,16.199]
[1747991057902,0.1,2662.5,2662.1,16.199]
[1747991058407,0.1,2662.6,2662.1,16.199]
[1747991061116,0.1,2662.6,2662.2,14.5]
[1747991063681,0.1,2662.6,2662.2,15.98883751]
[1747991064617,0.1,2662.6,2662.3,0.00381962]
[1747991064929,0.1,2662.6,2662.4,14.382]
[1747991065437,0.1,2662.6,2662.5,0.00381934]
[1747991065604,0.1,2662.6,2662.5,14.50381934]
[1747991067541,0.1,2662.6,2662.5,14.5]
[1747991069339,5.42240341,2662.9,2662.5,14.5]
[1747991069634,0.1,2662.7,2662.5,14.5]
[1747991070140,5.52240341,2662.9,2662.5,14.5]
[1747991070741,0.1,2662.8,2662.5,14.5]
[1747991071847,0.1,2662.8,2662.6,0.3753]
[1747991072039,0.1,2662.8,2662.4,14.382]
[1747991072454,0.1,2662.8,2662.7,14.5]
[1747991073750,5.52240341,2662.9,2662.7,14.5]
[1747991073916,5.52240341,2662.9,2662.4,14.382]
[1747991075051,5.52240341,2662.9,2662.7,14.5]
[1747991075516,5.52240341,2662.9,2662.8,0.00287408]
[1747991077964,5.52240341,2662.9,2662.7,14.5]
[1747991078659,5.42240341,2662.9,2662.7,14.5]
[1747991079036,0.1,2663.1,2662.7,14.5]
[1747991080459,0.1,2663.1,2662.7,15.98883751]
[1747991080858,5.42240341,2663.4,2662.7,15.98883751]
[1747991080859,0.1,2663.3,2662.7,15.98883751]
[1747991081259,5.42240341,2663.4,2662.7,15.98883751]
[1747991081579,5.52240341,2663.4,2662.7,15.98883751]
[1747991082080,5.52240341,2663.4,2662.8,0.3753]
[1747991082287,5.52240341,2663.4,2662.9,14.372]
[1747991082789,0.1,2663.5,2662.9,14.372]
[1747991083889,5.42240341,2663.6,2662.9,14.372]
[1747991084084,5.52240341,2663.6,2662.9,14.372]
[1747991084264,5.52240341,2663.6,2663.0,14.5]
[1747991084466,5.52240341,2663.6,2663.1,16.194]
[1747991085089,5.52240341,2663.6,2663.2,14.5]
[1747991085994,5.42240341,2663.6,2663.2,14.5]
[1747991088294,0.1,2663.8,2663.3,1.48883751]
[1747991088496,0.1,2663.8,2663.4,25.615]
[1747991088922,0.1,2663.8,2663.5,14.5]
[1747991089087,0.1,2663.8,2663.5,14.5038179]
[1747991089782,1.6418,2663.7,2663.6,25.613]
[1747991090596,1.6418,2663.7,2663.6,25.61681776]
[1747991090992,0.1,2663.8,2663.6,25.61681776]
[1747991092125,0.1,2663.8,2663.6,25.613]
[1747991093826,0.1,2663.8,2663.7,14.5]
[1747991094032,6.94690341,2664.0,2663.7,14.5]
[1747991094033,5.42240341,2664.0,2663.7,14.5]
[1747991094698,0.1,2663.8,2663.7,14.5]
[1747991095315,5.52240341,2664.0,2663.7,14.5]
[1747991100963,0.1,2664.0,2663.7,14.5]
[1747991101247,0.1,2664.2,2663.7,14.5]
[1747991101608,0.1,2664.4,2663.7,14.5]
[1747991102143,0.1,2664.4,2663.8,0.00381747]
[1747991103248,0.1,2664.6,2663.8,0.00381747]
[1747991103733,0.1,2664.8,2663.8,0.00381747]
[1747991103933,0.1,2664.6,2663.9,0.33496946]
[1747991104156,1.5487,2665.4,2664.0,25.62476915]
[1747991104358,1.5487,2665.4,2664.6,14.5]
[1747991104586,1.5487,2665.4,2664.7,14.365]
[1747991104862,1.5487,2665.4,2664.7,14.36881618]
[1747991105068,1.5487,2665.4,2664.7,14.365]
[1747991105270,1.5487,2665.4,2664.8,14.5]
[1747991105963,1.6263,2665.7,2664.8,14.5]
[1747991106297,0.55,2665.6,2664.9,16.188]
[1747991106446,1.6263,2665.7,2665.0,11.241]
[1747991106954,5.42240341,2665.8,2665.1,14.5]
[1747991107156,1.51721,2667.2,2665.2,14.351]
[1747991107357,1.85776427,2667.2,2665.3,0.0187405]
[1747991107557,1.85776427,2667.2,2665.2,14.351]
[1747991107558,1.85776427,2667.2,2665.4,0.0145]
[1747991107935,0.34055427,2667.2,2665.5,14.5]
[1747991108370,5.42240341,2667.9,2665.5,14.5]
[1747991108533,0.04687508,2667.8,2665.6,0.0145]
[1747991108733,0.04687508,2667.8,2665.7,14.351]
[1747991108969,0.55,2667.7,2665.7,14.351]
[1747991109139,1.8883327,2668.3,2665.8,0.0145]
[1747991109460,0.55,2668.0,2665.9,16.186]
[1747991109665,0.55,2667.8,2666.0,14.5]
[1747991109865,3.9367266,2668.2,2666.2,0.0145]
[1747991110087,0.18883327,2668.2,2666.3,14.348]
[1747991110288,0.55,2667.9,2666.3,14.35181389]
[1747991110493,0.55,2667.5,2666.4,14.5]
[1747991110796,1.5177,2667.6,2666.4,14.5]
[1747991111995,1.5177,2667.6,2666.5,25.585]
[1747991112199,1.5177,2667.6,2666.3,0.00381385]
[1747991112365,0.55,2667.5,2666.7,0.0145]
[1747991112581,0.20677,2667.4,2666.8,14.5]
[1747991112922,0.20677,2667.4,2666.9,16.179]
[1747991113525,0.20677,2667.4,2667.0,14.5]
[1747991113832,0.20677,2667.4,2667.1,14.345]
[1747991114521,0.20677,2667.4,2667.2,14.5]
[1747991114697,0.75677,2667.4,2667.3,25.58]
[1747991117600,6.17917341,2667.4,2667.3,25.58]
[1747991118306,6.17917341,2667.4,2666.9,16.179]
[1747991118307,0.55,2667.3,2666.9,16.179]
[1747991118508,0.55,2667.1,2667.0,14.343]
[1747991119537,0.55,2667.1,2667.0,40.076]
[1747991120747,0.55,2667.1,2667.0,14.5]
[1747991120906,2.1011,2667.1,2667.0,40.073]
[1747991121348,0.55,2667.1,2667.0,40.073]
[1747991122121,0.55,2667.3,2667.0,40.073]
[1747991122313,2.33102734,2667.3,2667.0,40.073]
[1747991123048,5.42240341,2667.2,2667.0,40.073]
[1747991123513,1.5353,2668.0,2667.1,0.0145]
[1747991123714,5.42240341,2667.9,2667.1,0.0145]
[1747991124110,5.42240341,2667.9,2667.2,14.5]
[1747991124423,0.55,2667.8,2667.2,14.5]
[1747991125217,5.42240341,2667.9,2667.3,25.569]
[1747991125414,0.55,2667.8,2667.3,25.569]
[1747991125814,5.42240341,2667.9,2667.3,25.569]
[1747991125815,5.42240341,2667.9,2667.4,14.5145]
[1747991126015,0.55,2667.8,2667.4,14.5145]
[1747991126217,5.42240341,2667.9,2667.4,14.5145]
[1747991126427,5.42240341,2667.9,2667.5,0.0145]
[1747991127164,5.42240341,2667.9,2667.6,14.5]
[1747991127713,5.42240341,2667.9,2667.7,25.569]
[1747991128043,5.42240341,2667.9,2667.5,0.0145]
[1747991128044,5.97240341,2667.9,2667.8,25.567]
[1747991128356,5.97240341,2667.9,2667.8,40.067]
[1747991128546,5.97240341,2667.9,2667.8,14.5]
[1747991128748,0.55,2667.8,2667.5,0.0145]
[1747991129136,0.55,2667.8,2667.6,25.565]
[1747991129678,0.55,2667.8,2667.7,14.5]
[1747991129847,0.55,2667.8,2667.7,40.065]
[1747991130054,0.55,2667.8,2667.7,25.565]
[1747991130767,5.42240341,2667.9,2667.7,25.565]
[1747991131142,5.97240341,2667.9,2667.8,14.5]
[1747991132705,5.97240341,2667.9,2667.8,40.064]
[1747991132974,5.42240341,2667.9,2667.8,40.064]
[1747991135081,5.42240341,2667.9,2667.8,40.0785]
[1747991135949,5.42240341,2668.2,2667.8,40.0785]
[1747991136281,1.5999,2668.6,2667.9,16.167]
[1747991136488,0.55,2668.5,2667.9,16.167]
[1747991136895,0.55,2668.5,2668.0,14.5]
[1747991137991,0.55,2668.8,2668.0,14.5]
[1747991138158,0.76339,2668.8,2668.1,0.0145]
[1747991138866,0.76339,2668.8,2668.2,14.5]
[1747991139091,0.76339,2668.8,2668.3,14.323]
[1747991139670,0.76339,2668.8,2668.4,14.5]
[1747991141885,2.30899,2668.8,2668.4,14.5]
[1747991142584,2.30899,2668.8,2668.5,25.546]
[1747991142894,2.30899,2668.8,2668.5,25.54981075]
[1747991143492,0.55,2668.6,2668.5,0.00381075]
[1747991144023,0.55,2668.6,2668.5,25.54881075]
[1747991145299,0.55,2668.6,2668.5,25.545]
[1747991146993,0.55,2668.6,2668.5,25.544]
[1747991148536,0.55,2668.7,2668.5,25.544]
[1747991150554,0.55,2668.9,2668.5,25.544]
[1747991150841,0.55,2668.9,2668.6,0.00381061]
[1747991153024,0.55,2668.9,2668.6,0.40621849]
[1747991153529,0.55,2668.9,2668.7,25.544]
[1747991154430,0.55,2668.9,2668.8,0.00381032]
[1747991154628,0.55,2669.7,2668.8,0.00381032]
[1747991154928,0.55,2669.3,2668.9,16.162]
[1747991155100,0.55,2669.1,2668.9,16.162]
[1747991155301,0.55,2669.1,2669.0,0.00239155]
[1747991155500,1.562,2669.4,2669.0,0.00239155]
[1747991156294,7.08290341,2669.7,2668.9,16.162]
[1747991156635,0.55,2669.6,2668.9,16.162]
[1747991156793,0.55,2669.6,2669.0,0.00239155]
[1747991156991,7.08290341,2669.7,2669.0,0.00239155]
[1747991157192,7.08290341,2669.7,2668.9,16.162]
[1747991157602,0.55,2669.6,2668.9,16.162]
[1747991157928,1.6605,2669.7,2668.9,16.162]
[1747991158130,1.6605,2669.7,2669.1,0.0145]
[1747991158432,1.6605,2669.7,2669.2,14.318]
[1747991158634,0.55,2669.6,2669.2,14.318]
[1747991160135,0.55,2669.4,2668.9,16.162]
[1747991160306,0.55,2669.2,2669.0,25.541]
[1747991161034,0.55,2669.2,2668.9,16.162]
[1747991161231,0.76999,2669.2,2669.0,25.54]
[1747991161647,0.55,2669.2,2669.0,25.54]
[1747991162332,1.6079,2669.5,2669.0,25.54]
[1747991162525,0.55,2669.4,2669.0,25.54]
[1747991163128,0.55,2669.4,2669.1,14.5]
[1747991165266,5.97240341,2669.4,2669.1,14.5]
[1747991165536,1.6389,2669.9,2669.2,0.0145]
[1747991165742,1.6389,2670.1,2669.2,0.0145]
[1747991165939,1.6389,2670.1,2669.2,0.80415714]
[1747991166239,5.42240341,2671.0,2669.4,0.0145]
[1747991166446,1.6061,2670.6,2669.5,14.317]
[1747991166654,1.6061,2670.6,2669.5,15.49605233]
[1747991166826,1.6061,2670.6,2669.6,0.0145]
[1747991167031,1.6061,2670.6,2669.7,14.5]
[1747991167356,0.55,2670.5,2669.7,14.5]
[1747991168233,0.55,2670.5,2669.7,15.67905233]
[1747991169555,0.55,2670.5,2669.7,14.5]
[1747991170969,7.06850341,2671.0,2669.8,0.0145]
[1747991171150,0.04681296,2670.9,2669.9,27.377]
[1747991171317,0.04681296,2670.9,2670.0,14.303]
[1747991171519,0.55,2670.8,2670.1,14.5]
[1747991172054,0.55,2670.6,2670.1,14.5]
[1747991172357,0.55,2670.6,2670.2,25.523]
[1747991174729,0.55,2670.6,2670.1,14.5]
[1747991174968,0.55,2670.6,2670.2,14.302]
[1747991175131,0.55,2670.6,2670.2,14.30410943]
[1747991175827,0.76387,2670.6,2670.3,14.302]
[1747991176228,0.76387,2670.6,2670.4,11.22110927]
[1747991177335,0.55,2670.6,2670.4,11.22110927]
[1747991177734,6.93150341,2671.0,2670.4,11.23560927]
[1747991178064,2.0591,2670.9,2670.4,11.219]
[1747991179372,15.50240341,2670.8,2670.4,11.219]
[1747991179572,15.50240341,2670.8,2670.4,11.2335]
[1747991180063,0.55,2670.7,2670.4,11.2335]
[1747991180228,15.50240341,2670.8,2670.4,11.219]
[1747991180570,0.55,2670.7,2670.5,25.518]
[1747991181435,0.55,2670.7,2670.5,40.018]
[1747991181643,0.55,2670.7,2670.5,25.518]
[1747991182145,0.55,2670.7,2670.6,14.5]
[1747991182357,5.97240341,2670.7,2670.6,14.5]
[1747991182977,5.97240341,2670.7,2670.2,0.0145]
[1747991183183,5.97240341,2670.7,2670.6,25.516]
[1747991187449,7.57764375,2670.7,2670.6,25.514]
[1747991187645,7.57764375,2670.7,2670.6,14.298]
[1747991187955,9.21304375,2670.7,2670.6,25.514]
[1747991188160,7.57764375,2670.7,2670.6,25.514]
[1747991188355,5.97240341,2670.7,2670.6,25.514]
[1747991192823,1.653,2671.4,2670.6,25.514]
[1747991192974,1.653,2671.4,2670.7,0.0145]
[1747991193493,0.55,2671.3,2670.7,0.0145]
[1747991194392,0.55,2671.3,2670.8,25.513]
[1747991194575,0.7703,2671.3,2670.9,16.15]
[1747991195175,0.7703,2671.3,2671.0,0.00380718]
[1747991195504,1.5434,2671.7,2671.0,0.00380718]
[1747991195704,1.5434,2671.7,2671.1,0.0145]
[1747991196198,1.5434,2671.7,2671.2,0.0038069]
[1747991196401,1.5434,2671.7,2671.3,14.297]
[1747991196603,0.55,2671.6,2671.3,14.297]
[1747991197010,0.55,2671.6,2671.3,14.30080675]
[1747991198001,0.55,2671.6,2671.3,14.297]
[1747991198874,0.55,2671.7,2671.3,14.297]
[1747991200170,1.5903,2671.9,2671.3,14.97067169]
[1747991200471,0.02,2671.9,2671.5,0.0145]
[1747991200684,0.02,2671.9,2671.6,11.214]
[1747991201111,0.02,2671.9,2671.7,0.0145]
[1747991201411,0.02,2671.9,2671.8,14.286]
[1747991202512,0.02,2671.9,2671.8,28.786]
[1747991202710,0.0664,2672.5,2671.8,40.0]
[1747991203008,0.0664,2672.5,2671.9,16.146]
[1747991203214,0.0664,2672.5,2672.0,25.498]
[1747991204302,0.0664,2672.5,2672.1,25.497]
[1747991204502,0.0664,2672.5,2672.2,25.497]
[1747991204701,0.35,2672.4,2672.2,25.497]
[1747991205729,0.35,2672.4,2672.3,0.00238683]
[1747991207219,0.35,2672.4,2672.3,25.49638683]
[1747991207835,0.35,2672.4,2672.3,0.00238683]
[1747991208026,0.35,2672.4,2672.3,25.49638683]
[1747991208323,0.35,2672.4,2672.3,25.494]
[1747991209129,0.35,2672.4,2672.3,25.493]
[1747991210085,0.35,2672.4,2671.9,16.146]
[1747991210287,0.04678394,2672.4,2672.0,25.493]
[1747991210486,0.55,2672.3,2672.1,25.493]
[1747991210727,0.77164,2672.3,2672.1,25.493]
[1747991210924,0.55,2672.1,2671.9,16.146]
[1747991211220,0.55,2672.1,2672.0,25.493]
[1747991212308,0.55,2672.1,2672.0,14.282]
[1747991212514,0.55,2672.1,2672.0,25.493]
[1747991212725,0.55,2672.1,2671.9,16.146]
[1747991213141,0.55,2672.1,2672.0,25.493]
[1747991213644,0.55,2672.1,2672.0,0.00257804]
[1747991213937,0.55,2672.1,2672.0,25.49557804]
[1747991214300,0.55,2672.1,2671.3,1.2092]
[1747991214499,0.55,2672.1,2671.4,0.78965714]
[1747991214754,0.55,2671.9,2671.4,0.40240788]
[1747991214917,0.55,2671.9,2671.5,0.00257852]
[1747991215619,0.55,2671.9,2671.6,11.211]
[1747991215823,0.55,2671.9,2671.7,11.211]
[1747991216340,1.5102,2672.4,2671.8,30.426]
[1747991216500,2.20396034,2672.4,2671.8,30.426]
[1747991217525,0.55,2672.3,2671.8,30.426]
[1747991217730,0.55,2672.3,2671.9,25.491]
[1747991218806,0.55,2672.3,2672.0,25.491]
[1747991219032,0.55,2672.3,2671.8,30.644]
[1747991219232,0.55,2672.1,2671.9,25.491]
[1747991219812,0.55,2672.1,2672.0,25.491]
[1747991220020,0.55,2672.3,2672.0,25.491]
[1747991221044,5.42240341,2672.2,2672.0,25.491]
[1747991221244,5.42240341,2672.2,2672.1,1.2092]
[1747991221411,5.97240341,2672.2,2672.1,1.2092]
[1747991221813,0.55,2672.1,2672.0,25.491]
[1747991222213,0.55,2672.1,2672.0,25.49297872]
[1747991222754,2.78624034,2672.1,2671.6,0.98103105]
[1747991222957,1.639,2671.8,2671.1,1.11353751]
[1747991223109,1.5614,2671.6,2671.1,1.11353751]
[1747991223313,0.55,2671.5,2671.1,1.11353751]
[1747991223728,0.55,2671.5,2671.2,14.281]
[1747991223937,2.15820273,2671.4,2671.3,14.281]
[1747991224158,2.1114,2671.4,2671.3,14.281]
[1747991224813,0.55,2671.1,2670.4,11.21]
[1747991225016,0.55,2670.9,2670.5,25.491]
[1747991225246,3.79042206,2671.3,2670.6,14.281]
[1747991225247,0.55,2670.7,2670.6,14.281]
[1747991225459,0.76431,2670.7,2669.8,14.5]
[1747991225630,0.76431,2670.7,2669.9,25.491]
[1747991226015,0.76431,2670.7,2670.0,25.491]
[1747991226214,0.76431,2670.7,2670.1,16.143]
[1747991227628,0.81112467,2670.7,2670.2,25.593]
[1747991227832,0.55,2670.5,2670.2,25.593]
[1747991228034,0.55,2670.7,2670.2,25.593]
[1747991232167,0.55,2670.7,2670.3,0.00176043]
[1747991232368,0.55,2670.7,2670.3,11.21576043]
[1747991233028,0.55,2670.7,2670.3,0.00176043]
[1747991233234,0.55,2670.5,2670.4,11.214]
[1747991233431,5.97240341,2670.4,2670.3,0.00176043]
[1747991233766,16.05240341,2670.4,2670.3,14.38576043]
[1747991234135,17.70550341,2670.4,2670.3,14.38576043]
[1747991234542,17.70550341,2670.4,2670.3,25.59976043]
[1747991234776,19.49748475,2670.4,2670.3,25.598]
[1747991236242,19.49748475,2670.4,2670.3,41.749]
[1747991237178,19.49748475,2670.4,2670.3,30.535]
[1747991237472,19.49748475,2670.4,2670.3,41.751]
[1747991238293,0.55,2669.8,2669.5,27.367]
[1747991238496,5.97240341,2669.8,2669.6,14.386]
[1747991240056,5.97240341,2669.8,2669.7,25.604]
[1747991240445,5.42240341,2669.8,2669.7,25.604]
[1747991241049,5.97240341,2669.8,2669.7,25.604]
[1747991241378,5.42240341,2670.3,2669.7,25.604]
[1747991241583,2.26160034,2670.2,2669.7,25.604]
[1747991242461,2.30842201,2670.2,2669.7,25.604]
[1747991242787,2.26160034,2670.2,2669.7,25.604]
[1747991243154,0.55,2670.0,2669.7,25.604]
[1747991244961,5.42240341,2669.9,2669.8,1.2092]
[1747991245695,5.42240341,2669.9,2669.8,15.7092]
[1747991246998,0.55,2670.5,2669.8,26.8152]
[1747991249507,1.5349,2670.8,2669.8,26.8152]
[1747991249707,0.04681243,2670.7,2669.8,41.3152]
[1747991249870,0.04681243,2670.5,2669.8,41.3152]
[1747991250422,0.55,2670.5,2669.8,41.3152]
[1747991250608,0.55,2670.7,2669.8,41.3152]
[1747991251995,0.55,2670.5,2669.5,17.3602]
[1747991252271,0.55,2670.3,2669.9,14.388]
[1747991255496,0.55,2670.3,2670.0,1.2092]
[1747991256100,0.55,2670.1,2670.0,1.4092]
[1747991256740,5.97240341,2670.1,2670.0,1.4092]
[1747991256891,5.42240341,2670.1,2670.0,1.4092]
[1747991257091,5.42240341,2670.1,2670.0,15.9092]
[1747991257428,5.97240341,2670.1,2670.0,15.9092]
[1747991258525,5.42240341,2670.1,2670.0,15.9092]
[1747991259225,15.50240341,2671.0,2670.1,1.2092]
[1747991259740,5.42240341,2671.0,2670.1,1.2092]
[1747991259901,5.42240341,2671.4,2670.3,1.2092]
[1747991260101,5.42240341,2671.4,2670.5,1.2092]
[1747991260454,5.42240341,2671.4,2670.4,25.697]
[1747991260455,5.42240341,2671.4,2670.8,1.2092]
[1747991260730,5.42240341,2671.4,2670.9,28.98]
[1747991261098,5.42240341,2671.4,2671.0,1.2092]
[1747991261299,5.42240341,2671.4,2671.1,11.217]
[1747991263036,5.42240341,2671.4,2671.2,14.478]
[1747991264045,6.56964375,2671.4,2671.3,14.5]
[1747991264243,0.55,2671.3,2671.2,14.478]
[1747991264442,0.55,2671.3,2671.2,25.694]
[1747991264635,0.55,2671.3,2671.2,40.194]
[1747991264805,5.97240341,2671.3,2671.2,40.194]
[1747991265309,5.97240341,2671.3,2671.2,25.694]
[1747991265605,5.42240341,2671.3,2671.2,25.694]
[1747991266245,5.42240341,2671.3,2671.2,56.343]
[1747991271350,5.42240341,2671.3,2671.2,14.475]
[1747991272452,5.42240341,2671.3,2671.2,28.975]
[1747991272656,5.42240341,2671.3,2671.2,40.188]
[1747991276259,5.42240341,2671.3,2671.2,56.335]
[1747991276659,5.42240341,2671.3,2671.2,56.334]
[1747991278063,5.42240341,2671.3,2671.2,45.121]
[1747991278267,5.42240341,2671.3,2671.2,56.334]
[1747991278964,5.42240341,2671.3,2671.2,41.834]
[1747991279768,0.54224034,2671.3,2671.2,16.147]
[1747991279966,2.0689,2671.3,2671.2,30.62]
[1747991280166,2.0689,2671.3,2671.2,41.832]
[1747991280572,7.49130341,2671.3,2671.2,16.147]
[1747991280747,0.55,2671.0,2670.6,1.1720986]
[1747991280937,2.109,2670.8,2670.7,14.473]
[1747991281846,2.109,2670.8,2670.7,25.685]
[1747991282044,0.55,2670.8,2670.7,25.685]
[1747991282371,5.42240341,2671.3,2670.7,25.685]
[1747991282372,1.559,2671.2,2670.7,25.685]
[1747991282574,0.55,2671.1,2670.7,25.685]
[1747991283076,0.55,2671.1,2670.8,25.685]
[1747991283372,0.55,2671.1,2670.9,14.473]
[1747991285157,0.55,2671.1,2670.8,25.712]
[1747991285158,0.55,2671.1,2670.8,14.5]
[1747991285344,0.59724034,2671.1,2670.9,25.687]
[1747991285549,0.55,2671.2,2671.0,14.474]
[1747991286275,0.55,2671.2,2671.1,16.147]
[1747991288770,1.5433,2671.8,2671.1,16.147]
[1747991288946,0.59679448,2671.7,2671.1,16.147]
[1747991289277,0.55,2671.5,2671.1,16.147]
[1747991289584,0.55,2671.3,2671.1,16.147]
[1747991289758,0.55,2671.3,2671.2,11.213]
[1747991289945,0.55,2671.3,2671.2,25.771]
[1747991290644,5.97240341,2671.3,2671.2,25.771]
[1747991290843,6.72357375,2671.3,2671.2,25.771]